fUST/lending_fUST_20240313
["ID","MTS","AMOUNT","RATE_DAILY","PERIOD"]
[318542709,1710276632063,-500.0,0.00015499,2]
[318542711,1710276632072,-500.0,0.00015499,2]
[318542713,1710276632081,-500.0,0.00015499,2]
[318542715,1710276632090,-500.0,0.00015499,2]
[318542717,1710276632099,-28.49904109,0.00015499,2]
[318542719,1710276632111,-471.50095891,0.00015499,2]
[318542720,1710276632120,-133.5170587,0.00015499,2]
[318542723,1710276632141,-366.4829413,0.00015499,2]
[318542725,1710276632150,-500.0,0.00015499,2]
[318542727,1710276632159,-500.0,0.00015499,2]
[318542729,1710276632168,-500.0,0.00015499,2]
[318542730,1710276632178,-500.0,0.00015499,2]
[318542732,1710276632187,-500.0,0.00015499,2]
[318542734,1710276632197,-500.0,0.00015499,2]
[318542736,1710276632205,-500.0,0.00015499,2]
[318542738,1710276632215,-500.0,0.00015499,2]
[318542740,1710276632225,-500.0,0.00015499,2]
[318542742,1710276632234,-500.0,0.00015499,2]
[318542743,1710276632243,-380.61833739,0.00015499,2]
[318542745,1710276632252,-13300.04237064,0.000155,2]
[318542747,1710276632265,-64415.99487571,0.000155,2]
[318543296,1710276637988,-211918.61078578,0.000155,2]
[318543301,1710276637999,-9210.5,0.000155,2]
[318543314,1710276638058,-28075.95993287,0.000155,2]
[318543318,1710276638069,-7798.76,0.000155,2]
[318547741,1710277832710,-155.33396803,0.00014376,2]
[318547743,1710277832720,-1775.7096874,0.00014377,2]
[318547744,1710277832729,-213.231611,0.00014478,2]
[318547746,1710277832738,-620.01212168,0.00015415,2]
[318547747,1710277832747,-217.11362545,0.00015498,2]
[318547748,1710277832757,-183.10678877,0.00015498,2]
[318547749,1710277832766,-596.19717157,0.00015498,2]
[318547750,1710277832776,-294.93803503,0.00015499,2]
[318547751,1710277832786,-500.0,0.00015499,2]
[318547752,1710277832795,-500.0,0.00015499,2]
[318547753,1710277832806,-235.07,0.00015499,2]
[318547754,1710277832814,-500.0,0.00015499,2]
[318547755,1710277832823,-500.0,0.00015499,2]
[318547756,1710277832833,-500.0,0.00015499,2]
[318547757,1710277832843,-427.04976522,0.00015499,2]
[318547758,1710277832852,-110494.70534663,0.000155,2]
[318547759,1710277832864,-15759.95422212,0.000155,2]
[318547870,1710277838184,-31621.263996,0.000155,2]
[318548111,1710278057471,6447.53,0.000232,99]
[318548112,1710278154016,-1377176.30262197,0.0001943,60]
[318548113,1710278154041,-1622823.69737803,0.0001943,60]
[318548431,1710279035730,-155.28417003,0.00014456,2]
[318548432,1710279035741,-165.507013,0.00014457,2]
[318548433,1710279035753,-10587.8632199,0.00014501,2]
[318548434,1710279035764,-168.20848489,0.00015398,2]
[318548435,1710279035774,-98093.1178299,0.000154,2]
[318548436,1710279035785,-310.2497508,0.00015498,2]
[318548437,1710279035795,-191.54405702,0.00015498,2]
[318548438,1710279035806,-273.98795543,0.00015498,2]
[318548439,1710279035817,-2598.2198964,0.00015498,2]
[318548440,1710279035827,-334.93497172,0.00015498,2]
[318548441,1710279035837,-270.23601369,0.00015498,2]
[318548442,1710279035848,-155.28796928,0.00015498,2]
[318548443,1710279035858,-155.11323266,0.00015498,2]
[318548444,1710279035869,-211.97574014,0.00015498,2]
[318548445,1710279035878,-155.14739002,0.00015498,2]
[318548446,1710279035888,-155.14428418,0.00015498,2]
[318548447,1710279035898,-155.1520413,0.00015498,2]
[318548448,1710279035907,-155.15049598,0.00015498,2]
[318548449,1710279035917,-155.15049598,0.00015498,2]
[318548450,1710279035926,-15244.78488328,0.00015498,2]
[318548451,1710279035935,-966.01360658,0.00015498,2]
[318548452,1710279035945,-155.36042613,0.00015498,2]
[318548453,1710279035955,-47656.7894357,0.00015499,2]
[318548454,1710279035966,-20507.87031804,0.00015499,2]
[318548455,1710279035976,-2714184.6000442,0.000155,2]
[318548456,1710279035993,-10865.26574815,0.000155,2]
[318548457,1710279036005,-9051.54413919,0.000155,2]
[318548553,1710279038393,-3231.89708593,0.000155,2]
[318548556,1710279038404,-5892.30496636,0.000155,2]
[318548558,1710279038415,-100389.76467251,0.000155,2]
[318548560,1710279038426,-27540.59999993,0.000155,2]
[318548616,1710279040322,-2692.24424372,0.000155,2]
[318548617,1710279040334,-5126.8774467,0.000155,2]
[318548711,1710279046413,-84831.26173602,0.000155,2]
[318548712,1710279046425,-601.85772902,0.000155,2]
[318548713,1710279046439,-78294.25526351,0.000155,2]
[318548714,1710279046450,-36900.38421197,0.000155,2]
[318548715,1710279046462,-69695.78754243,0.000155,2]
[318548716,1710279046629,-3422.90005,0.000155,2]
[318548717,1710279046640,-15768.5966743,0.000155,2]
[318548718,1710279046652,-41903.79004846,0.000155,2]
[318549432,1710280235587,-155.15515516,0.00014454,2]
[318549433,1710280235598,-429.1518949,0.00014455,2]
[318549434,1710280235608,-1309.47204316,0.00014501,2]
[318549435,1710280237716,-11983.24535044,0.00014501,2]
[318549436,1710280237725,-620.00060608,0.00015376,2]
[318549437,1710280237735,-6025.64178365,0.000154,2]
[318549438,1710280237744,-529.02029954,0.00015498,2]
[318549439,1710280237753,-163.32544229,0.00015498,2]
[318549440,1710280237762,-347.77838108,0.00015498,2]
[318549441,1710280237771,-1297.56472994,0.00015498,2]
[318549442,1710280237781,-245.98065434,0.00015498,2]
[318549443,1710280237790,-204.87491484,0.00015498,2]
[318549444,1710280237799,-538.93657172,0.00015498,2]
[318549445,1710280237809,-524.29941204,0.00015498,2]
[318549447,1710280237818,-624.13231565,0.00015498,2]
[318549448,1710280237827,-3144.75019936,0.00015499,2]
[318549450,1710280237836,-10702.14584825,0.000155,2]
[318549453,1710280237852,-2661031.62208519,0.000155,2]
[318549542,1710280238549,-55090.91245844,0.000155,2]
[318549545,1710280238561,-14150.49,0.000155,2]
[318549547,1710280238574,-29130.31116956,0.000155,2]
[318549735,1710280246194,-2268.27845372,0.00015498,2]
[318549736,1710280246204,-500.0,0.00015499,2]
[318549737,1710280246213,-500.0,0.00015499,2]
[318549738,1710280246223,-500.0,0.00015499,2]
[318549739,1710280246232,-500.0,0.00015499,2]
[318549740,1710280246241,-500.0,0.00015499,2]
[318549741,1710280246250,-500.0,0.00015499,2]
[318549743,1710280246260,-500.0,0.00015499,2]
[318549746,1710280246269,-113048.2535084,0.000155,2]
[318549790,1710280246637,-374.9181638,0.000155,2]
[318549793,1710280246650,-787.2,0.000155,2]
[318550228,1710281439346,-155.15515516,0.00014459,2]
[318550229,1710281439356,-528.8455798,0.0001446,2]
[318550231,1710281439365,-9583.5887678,0.00014467,2]
[318550232,1710281439375,-819.90042253,0.00015481,2]
[318550233,1710281439384,-16929.38486548,0.00015482,2]
[318550234,1710281439394,-6676.33040791,0.00015483,2]
[318550236,1710281439403,-7993.07389462,0.0001549,2]
[318550237,1710281439416,-1408.44275237,0.0001549,2]
[318550239,1710281439428,-1724.99573794,0.0001549,2]
[318550241,1710281439438,-500.0,0.00015497,2]
[318550243,1710281439448,-500.0,0.00015497,2]
[318550245,1710281439458,-500.0,0.00015497,2]
[318550246,1710281439468,-500.0,0.00015497,2]
[318550248,1710281439477,-500.0,0.00015497,2]
[318550251,1710281439487,-500.0,0.00015497,2]
[318550253,1710281439496,-500.0,0.00015497,2]
[318550254,1710281439507,-319.96288176,0.00015497,2]
[318550256,1710281439517,-500.0,0.00015497,2]
[318550258,1710281439526,-500.0,0.00015497,2]
[318550260,1710281439539,-500.0,0.00015497,2]
[318550261,1710281439548,-500.0,0.00015497,2]
[318550263,1710281439557,-500.0,0.00015497,2]
[318550265,1710281439567,-500.0,0.00015497,2]
[318550267,1710281439576,-500.0,0.00015497,2]
[318550268,1710281439586,-500.0,0.00015497,2]
[318550269,1710281439595,-500.0,0.00015497,2]
[318550271,1710281439604,-500.0,0.00015497,2]
[318550273,1710281439613,-500.0,0.00015497,2]
[318550275,1710281439622,-500.0,0.00015497,2]
[318550276,1710281439630,-500.0,0.00015497,2]
[318550278,1710281439639,-500.0,0.00015497,2]
[318550280,1710281439648,-500.0,0.00015497,2]
[318550281,1710281439657,-500.0,0.00015497,2]
[318550282,1710281439666,-500.0,0.00015497,2]
[318550284,1710281439676,-500.0,0.00015497,2]
[318550286,1710281439685,-617.07743668,0.00015497,2]
[318550287,1710281439695,-530.59322264,0.00015497,2]
[318550289,1710281439705,-570.81,0.00015497,2]
[318550291,1710281439714,-500.0,0.00015497,2]
[318550293,1710281439723,-500.0,0.00015497,2]
[318550294,1710281439733,-500.0,0.00015497,2]
[318550295,1710281439742,-473.87260692,0.00015497,2]
[318550296,1710281439751,-191.54405702,0.00015498,2]
[318550297,1710281439760,-212.04319387,0.00015498,2]
[318550299,1710281439769,-595.99810704,0.00015498,2]
[318550301,1710281439779,-184.24203833,0.00015498,2]
[318550302,1710281439788,-340.22300168,0.00015498,2]
[318550303,1710281439797,-218.17528736,0.00015498,2]
[318550304,1710281439806,-15253.15738836,0.00015498,2]
[318550305,1710281439816,-155.98713397,0.00015498,2]
[318550306,1710281439825,-307.57237006,0.00015498,2]
[318550307,1710281439834,-1601.93601941,0.00015498,2]
[318550308,1710281439844,-42204.38253136,0.00015498,2]
[318550309,1710281439853,-617.9347122,0.00015498,2]
[318550310,1710281439862,-180.429772,0.00015498,2]
[318550311,1710281439872,-1288.73245079,0.00015498,2]
[318550312,1710281439881,-500.0,0.00015498,2]
[318550313,1710281439890,-500.0,0.00015498,2]
[318550314,1710281439899,-608.05773769,0.00015498,2]
[318550315,1710281439908,-500.0,0.00015498,2]
[318550316,1710281439917,-500.0,0.00015498,2]
[318550317,1710281439926,-500.0,0.00015498,2]
[318550318,1710281439935,-500.0,0.00015498,2]
[318550319,1710281439944,-204.41272195,0.00015498,2]
[318550320,1710281439954,-500.0,0.00015498,2]
[318550321,1710281439962,-500.0,0.00015498,2]
[318550322,1710281439976,-500.0,0.00015498,2]
[318550323,1710281439985,-500.0,0.00015498,2]
[318550324,1710281439995,-500.0,0.00015498,2]
[318550325,1710281440004,-500.0,0.00015499,2]
[318550326,1710281440013,-500.0,0.00015499,2]
[318550327,1710281440021,-204.35304717,0.00015499,2]
[318550328,1710281440115,-240.00674681,0.00015499,2]
[318550329,1710281440125,-500.0,0.00015499,2]
[318550330,1710281440134,-500.0,0.00015499,2]
[318550331,1710281440143,-500.0,0.00015499,2]
[318550332,1710281440152,-500.0,0.00015499,2]
[318550333,1710281440161,-500.0,0.00015499,2]
[318550334,1710281440170,-500.0,0.00015499,2]
[318550335,1710281440179,-500.0,0.00015499,2]
[318550336,1710281440189,-500.0,0.00015499,2]
[318550337,1710281440198,-285.06904663,0.00015499,2]
[318550339,1710281440208,-500.0,0.00015499,2]
[318550341,1710281440217,-500.0,0.00015499,2]
[318550342,1710281440227,-500.0,0.00015499,2]
[318550343,1710281440238,-272.32427809,0.00015499,2]
[318550344,1710281440247,-500.0,0.00015499,2]
[318550345,1710281440258,-500.0,0.00015499,2]
[318550347,1710281440269,-500.0,0.00015499,2]
[318550349,1710281440278,-372.15,0.00015499,2]
[318550350,1710281440287,-500.0,0.00015499,2]
[318550351,1710281440295,-500.0,0.00015499,2]
[318550352,1710281440306,-271.3813931,0.00015499,2]
[318550353,1710281440315,-500.0,0.00015499,2]
[318550354,1710281440324,-500.0,0.00015499,2]
[318550355,1710281440333,-500.0,0.00015499,2]
[318550356,1710281440342,-297.74,0.00015499,2]
[318550357,1710281440353,-502.94412023,0.00015499,2]
[318550358,1710281440362,-500.0,0.00015499,2]
[318550359,1710281440371,-500.0,0.00015499,2]
[318550360,1710281440380,-500.0,0.00015499,2]
[318550361,1710281440389,-500.0,0.00015499,2]
[318550362,1710281440398,-500.0,0.00015499,2]
[318550363,1710281440407,-500.0,0.00015499,2]
[318550364,1710281440416,-500.0,0.00015499,2]
[318550365,1710281440425,-608.8,0.00015499,2]
[318550366,1710281440435,-500.0,0.00015499,2]
[318550368,1710281440444,-500.0,0.00015499,2]
[318550370,1710281440454,-500.0,0.00015499,2]
[318550372,1710281440463,-607.8,0.00015499,2]
[318550373,1710281440474,-500.0,0.00015499,2]
[318550374,1710281440483,-641.59,0.00015499,2]
[318550375,1710281440494,-555198.70095894,0.000155,2]
[318550376,1710281440508,-22013.15784811,0.000155,2]
[318550378,1710281440522,-79907.04034471,0.000155,2]
[318550379,1710281440535,-217273.84968079,0.000155,2]
[318550380,1710281440547,-3075.38692587,0.000155,2]
[318550381,1710281440561,-32312.63649737,0.000155,2]
[318550382,1710281440574,-44584.78314837,0.000155,2]
[318550383,1710281440585,-6487.0972115,0.000155,2]
[318550384,1710281440597,-29395.82601032,0.000155,2]
[318550534,1710282633671,-4243.8892358,0.00014322,2]
[318550536,1710282633680,-279.880793,0.00014457,2]
[318550538,1710282633690,-3089.60007001,0.00014457,2]
[318550540,1710282633699,-279.880793,0.00014638,2]
[318550542,1710282633709,-279.880793,0.00014819,2]
[318550544,1710282633718,-279.880793,0.00014999,2]
[318550546,1710282633727,-279.880793,0.0001518,2]
[318550548,1710282633737,-153.0,0.000152,2]
[318550550,1710282633747,-447.741652,0.000152,2]
[318550552,1710282633756,-2000.0,0.00015202,2]
[318550553,1710282633765,-201.0608458,0.000153,2]
[318550556,1710282633775,-153.0,0.000153,2]
[318550558,1710282633784,-153.0,0.000153,2]
[318550559,1710282633793,-201.0608458,0.000153,2]
[318550561,1710282633802,-153.0,0.000153,2]
[318550563,1710282633811,-153.0,0.000153,2]
[318550565,1710282633820,-272.6689743,0.000153,2]
[318550567,1710282633830,-450.3976375,0.000153,2]
[318550569,1710282633839,-201.0608458,0.000153,2]
[318550571,1710282633849,-153.0,0.000153,2]
[318550573,1710282633858,-153.0,0.000153,2]
[318550575,1710282633868,-201.0608458,0.000153,2]
[318550577,1710282633879,-153.0,0.000153,2]
[318550579,1710282633889,-200.614007,0.000153,2]
[318550581,1710282633899,-201.0348662,0.000153,2]
[318550583,1710282633909,-201.0608458,0.000153,2]
[318550585,1710282633920,-309.6755845,0.000153,2]
[318550587,1710282633930,-201.0608458,0.000153,2]
[318550589,1710282633941,-153.0,0.000153,2]
[318550591,1710282633951,-153.0,0.000153,2]
[318550592,1710282633962,-153.0,0.000153,2]
[318550593,1710282633972,-401.8677449,0.000153,2]
[318550594,1710282633982,-153.0,0.000153,2]
[318550595,1710282633992,-306.0,0.000153,2]
[318550596,1710282634097,-154.0707018,0.000153,2]
[318550597,1710282634107,-153.0,0.000153,2]
[318550598,1710282634118,-2157.04312356,0.000154,2]
[318550599,1710282634127,-153.0,0.000154,2]
[318550600,1710282634137,-153.0,0.000154,2]
[318550601,1710282634147,-153.0,0.000154,2]
[318550602,1710282634158,-153.0,0.000154,2]
[318550603,1710282634168,-153.0,0.000154,2]
[318550604,1710282634178,-153.0,0.000154,2]
[318550605,1710282634187,-153.651142,0.000154,2]
[318550606,1710282634196,-153.0,0.000154,2]
[318550607,1710282634205,-153.0,0.000154,2]
[318550608,1710282634214,-153.0,0.000154,2]
[318550609,1710282634224,-153.0,0.000154,2]
[318550610,1710282634234,-153.0,0.000154,2]
[318550611,1710282634244,-404.7251548,0.000154,2]
[318550612,1710282634255,-153.0,0.000154,2]
[318550613,1710282634266,-153.0,0.000154,2]
[318550614,1710282634275,-306.0,0.000154,2]
[318550615,1710282634286,-153.0,0.000154,2]
[318550616,1710282634296,-153.0,0.000154,2]
[318550617,1710282634306,-153.0,0.000154,2]
[318550618,1710282634317,-153.0,0.000154,2]
[318550619,1710282634327,-153.0,0.000154,2]
[318550620,1710282634338,-294.93803503,0.00015498,2]
[318550621,1710282634349,-1951.90972773,0.00015498,2]
[318550622,1710282634359,-477.84216106,0.00015498,2]
[318550623,1710282634370,-526.20232131,0.00015499,2]
[318550624,1710282634379,-223.77993004,0.00015499,2]
[318550625,1710282634390,-2268.27845372,0.00015499,2]
[318550626,1710282634400,-500.0,0.00015499,2]
[318550627,1710282634410,-500.0,0.00015499,2]
[318550628,1710282634420,-500.0,0.00015499,2]
[318550629,1710282634441,-500.0,0.00015499,2]
[318550630,1710282634452,-500.0,0.00015499,2]
[318550631,1710282634463,-500.0,0.00015499,2]
[318550632,1710282634475,-500.0,0.00015499,2]
[318550633,1710282634487,-271.01329752,0.00015499,2]
[318550634,1710282634499,-500.35153087,0.00015499,2]
[318550635,1710282634510,-500.0,0.00015499,2]
[318550636,1710282634520,-500.0,0.00015499,2]
[318550637,1710282634532,-500.0,0.00015499,2]
[318550638,1710282634544,-355.66068189,0.00015499,2]
[318550639,1710282634555,-500.0,0.00015499,2]
[318550640,1710282634566,-500.0,0.00015499,2]
[318550641,1710282634576,-500.0,0.00015499,2]
[318550642,1710282634588,-500.0,0.00015499,2]
[318550643,1710282634598,-500.0,0.00015499,2]
[318550644,1710282634610,-215.1,0.00015499,2]
[318550645,1710282634619,-500.0,0.00015499,2]
[318550646,1710282634631,-500.0,0.00015499,2]
[318550647,1710282634642,-235.07,0.00015499,2]
[318550648,1710282634654,-500.0,0.00015499,2]
[318550649,1710282634665,-500.0,0.00015499,2]
[318550650,1710282634674,-500.0,0.00015499,2]
[318550651,1710282634686,-500.0,0.00015499,2]
[318550652,1710282634696,-345.96383842,0.00015499,2]
[318550653,1710282634707,-500.0,0.00015499,2]
[318550654,1710282634718,-500.0,0.00015499,2]
[318550655,1710282634729,-500.0,0.00015499,2]
[318550656,1710282634739,-500.0,0.00015499,2]
[318550657,1710282634749,-500.0,0.00015499,2]
[318550658,1710282634763,-500.0,0.00015499,2]
[318550659,1710282634773,-261.36,0.00015499,2]
[318550660,1710282634783,-500.0,0.00015499,2]
[318550661,1710282634793,-500.0,0.00015499,2]
[318550662,1710282634804,-500.0,0.00015499,2]
[318550663,1710282634814,-365.08,0.00015499,2]
[318550664,1710282634823,-500.0,0.00015499,2]
[318550665,1710282634834,-500.0,0.00015499,2]
[318550666,1710282634843,-500.0,0.00015499,2]
[318550667,1710282634854,-500.0,0.00015499,2]
[318550668,1710282634863,-4690653.32352312,0.000155,2]
[318550669,1710282634888,-144909.02428282,0.000155,2]
[318550670,1710282634900,-7695.2956762,0.000155,2]
[318550741,1710282637937,-645.60582922,0.000155,2]
[318550743,1710282637948,-31463.87198387,0.000155,2]
[318550747,1710282637995,-10947.7635025,0.000155,2]
[318551727,1710282794254,500.0,0.000145,7]
[318551728,1710282795075,500.0,0.000145,7]
[318551729,1710282795784,500.0,0.000145,7]
[318551730,1710282796543,500.0,0.000145,7]
[318551731,1710282797301,500.0,0.000145,7]
[318551732,1710282798066,500.0,0.000145,7]
[318551733,1710282799046,500.0,0.000145,7]
[318551734,1710282799692,500.0,0.000145,7]
[318551735,1710282800452,584.45,0.000145,7]
[318551780,1710283832469,-558.58973234,0.00014411,2]
[318551782,1710283832479,-524.66132119,0.00014412,2]
[318551784,1710283832489,-596.40893399,0.00014412,2]
[318551786,1710283832498,-212.12126449,0.00014413,2]
[318551788,1710283832507,-315.82060362,0.00014413,2]
[318551791,1710283832517,-191.61181795,0.00014414,2]
[318551794,1710283832527,-155.15515516,0.00014414,2]
[318551797,1710283832537,-2115.90680613,0.00014414,2]
[318551801,1710283832546,-1474.94168341,0.00014415,2]
[318551803,1710283832556,-13011.1211189,0.00014417,2]
[318551806,1710283832567,-2252.25383344,0.00014417,2]
[318551808,1710283832577,-312.56879444,0.000145,2]
[318551810,1710283832586,-155.15515516,0.000145,2]
[318551812,1710283832595,-40000.0,0.00015,2]
[318551814,1710283832605,-2000.0,0.00015202,2]
[318551816,1710283832614,-500.0,0.00015399,2]
[318551818,1710283832624,-319.96288176,0.00015399,2]
[318551819,1710283832633,-500.0,0.00015399,2]
[318551821,1710283832643,-500.0,0.00015399,2]
[318551823,1710283832652,-500.0,0.00015399,2]
[318551825,1710283832661,-314.56849427,0.00015399,2]
[318551827,1710283832671,-500.0,0.00015399,2]
[318551829,1710283832680,-500.0,0.00015399,2]
[318551831,1710283832689,-500.0,0.00015399,2]
[318551833,1710283832698,-500.0,0.00015399,2]
[318551835,1710283832707,-500.0,0.00015399,2]
[318551837,1710283832716,-500.0,0.00015399,2]
[318551839,1710283832726,-500.0,0.00015399,2]
[318551841,1710283832735,-500.0,0.00015399,2]
[318551843,1710283832744,-500.0,0.00015399,2]
[318551845,1710283832753,-500.0,0.00015399,2]
[318551847,1710283832762,-500.0,0.00015399,2]
[318551849,1710283832771,-500.0,0.00015399,2]
[318551851,1710283832782,-500.0,0.00015399,2]
[318551853,1710283832791,-500.0,0.00015399,2]
[318551855,1710283832801,-500.0,0.00015399,2]
[318551857,1710283832810,-500.0,0.00015399,2]
[318551859,1710283832819,-633.0,0.00015399,2]
[318551861,1710283832828,-500.0,0.00015399,2]
[318551863,1710283832838,-500.0,0.00015399,2]
[318551865,1710283832847,-500.0,0.00015399,2]
[318551867,1710283832856,-500.0,0.00015399,2]
[318551869,1710283832865,-234.24,0.00015399,2]
[318551871,1710283832875,-52857.96630205,0.000154,2]
[318551873,1710283832884,-591.2274283,0.000154,2]
[318551875,1710283832893,-235.0614,0.00015423,2]
[318551877,1710283832902,-1506.08163674,0.00015483,2]
[318551879,1710283832911,-500.0,0.00015496,2]
[318551881,1710283832920,-500.0,0.00015496,2]
[318551883,1710283832929,-608.05773769,0.00015496,2]
[318551885,1710283832939,-500.0,0.00015496,2]
[318551887,1710283832948,-500.0,0.00015497,2]
[318551889,1710283832957,-500.0,0.00015497,2]
[318551890,1710283832966,-500.0,0.00015497,2]
[318551891,1710283832975,-500.0,0.00015497,2]
[318551892,1710283832985,-500.0,0.00015497,2]
[318551893,1710283832994,-473.87260692,0.00015497,2]
[318551894,1710283833004,-500.0,0.00015497,2]
[318551895,1710283833013,-500.0,0.00015497,2]
[318551896,1710283833023,-500.0,0.00015497,2]
[318551897,1710283833032,-500.0,0.00015497,2]
[318551898,1710283833042,-500.0,0.00015497,2]
[318551899,1710283833051,-500.0,0.00015497,2]
[318551900,1710283833060,-617.07743668,0.00015497,2]
[318551901,1710283833069,-500.0,0.00015497,2]
[318551902,1710283833081,-500.0,0.00015497,2]
[318551903,1710283833090,-500.0,0.00015497,2]
[318551904,1710283833098,-402.19173228,0.00015497,2]
[318551905,1710283833108,-500.0,0.00015497,2]
[318551906,1710283833117,-321.91043796,0.00015497,2]
[318551907,1710283833127,-165.68066452,0.00015498,2]
[318551908,1710283833136,-334.26161942,0.00015498,2]
[318551909,1710283833145,-218.17528736,0.00015498,2]
[318551910,1710283833155,-580.13342155,0.00015498,2]
[318551911,1710283833164,-3145.34600817,0.00015498,2]
[318551912,1710283833174,-155.98713397,0.00015498,2]
[318551913,1710283833183,-690.59173185,0.00015498,2]
[318551914,1710283833193,-1951.90972773,0.00015498,2]
[318551915,1710283833202,-160.37161933,0.00015498,2]
[318551916,1710283833212,-155.30349036,0.00015498,2]
[318551917,1710283833222,-167.2046961,0.00015498,2]
[318551918,1710283833232,-1080.72070216,0.00015498,2]
[318551919,1710283833242,-180.429772,0.00015498,2]
[318551920,1710283833251,-179.75548082,0.00015498,2]
[318551921,1710283833261,-2222.54358435,0.00015498,5]
[318551922,1710283833270,-204.7711481,0.00015498,2]
[318551923,1710283833280,-184.24203833,0.00015498,2]
[318551924,1710283833289,-404.59380981,0.00015498,2]
[318551925,1710283833300,-320.42430377,0.00015498,2]
[318551926,1710283833411,-155.53579294,0.00015498,2]
[318551927,1710283833421,-13409.74840052,0.00015498,2]
[318551928,1710283833431,-155.41137118,0.00015498,2]
[318551929,1710283833440,-500.0,0.00015498,2]
[318551930,1710283833449,-500.0,0.00015498,2]
[318551931,1710283833458,-500.0,0.00015498,2]
[318551932,1710283833467,-500.0,0.00015498,2]
[318551933,1710283833476,-500.0,0.00015498,2]
[318551934,1710283833485,-500.0,0.00015498,2]
[318551935,1710283833494,-500.0,0.00015498,2]
[318551936,1710283833503,-500.0,0.00015498,2]
[318551937,1710283833512,-240.00674681,0.00015498,2]
[318551938,1710283833521,-500.0,0.00015498,2]
[318551939,1710283833530,-500.0,0.00015498,2]
[318551940,1710283833539,-500.0,0.00015498,2]
[318551941,1710283833548,-500.0,0.00015498,2]
[318551942,1710283833557,-500.0,0.00015498,2]
[318551943,1710283833566,-500.0,0.00015498,2]
[318551944,1710283833575,-500.0,0.00015498,2]
[318551945,1710283833584,-500.0,0.00015498,2]
[318551946,1710283833593,-497.85976522,0.00015498,2]
[318551947,1710283833602,-500.0,0.00015498,2]
[318551948,1710283833611,-500.0,0.00015498,2]
[318551949,1710283833620,-500.0,0.00015498,2]
[318551950,1710283833629,-241.0000508,0.00015499,2]
[318551951,1710283833638,-302.8897834,0.00015499,2]
[318551952,1710283833647,-155.99696445,0.00015499,2]
[318551953,1710283833656,-310.30099196,0.00015499,2]
[318551954,1710283833665,-44184.76553349,0.00015499,2]
[318551955,1710283833674,-216.83818254,0.00015499,2]
[318551956,1710283833683,-500.0,0.00015499,2]
[318551957,1710283833692,-500.0,0.00015499,2]
[318551958,1710283833702,-204.41272195,0.00015499,2]
[318551960,1710283833710,-500.0,0.00015499,2]
[318551961,1710283833720,-500.0,0.00015499,2]
[318551963,1710283833729,-500.0,0.00015499,2]
[318551965,1710283833739,-500.0,0.00015499,2]
[318551966,1710283833748,-502.94412023,0.00015499,2]
[318551967,1710283833757,-500.0,0.00015499,2]
[318551968,1710283833766,-500.0,0.00015499,2]
[318551969,1710283833777,-530.59322264,0.00015499,2]
[318551970,1710283833785,-500.0,0.00015499,2]
[318551971,1710283833795,-500.0,0.00015499,2]
[318551972,1710283833804,-500.0,0.00015499,2]
[318551973,1710283833813,-500.0,0.00015499,2]
[318551974,1710283833822,-500.0,0.00015499,2]
[318551975,1710283833831,-372.15,0.00015499,2]
[318551976,1710283833840,-500.0,0.00015499,2]
[318551977,1710283833849,-557.10947549,0.00015499,2]
[318551978,1710283833858,-500.0,0.00015499,2]